Cogmind - Beta 17 @@@ ROGUE MODE // 2026.07.29 @ 23:33:30 Player: TheLostLambda Result: Destroyed by Y-54 Guardian with Gatling Laser Performance ------------- Evolutions (0) 0 Regions Visited (3) 600 Robots Destroyed (40) 200 Value Destroyed (459) 459 Prototype IDs (2) 40 Alien Tech Used (0) 0 Bonus (0) 0 TOTAL SCORE: 1299 Bonus ------- None Cogmind --------- Core Integrity 0/250 Matter 300/300 Energy 87/100 System Corruption 0% Temperature Warm (133) Movement Walking (200) Ox1 Location -7/Recycling Parts ------- > --- POWER (1) -------- (None) > --- PROPULSION (2) --- Titanium Leg > --- UTILITY (2) ------ Large Storage Unit Hardened Medium Armor Plating > --- WEAPON (2) ------- (None) > --- INVENTORY (15) --- Light Ion Engine Armored Treads Aluminum Leg Titanium Leg Improved Cooling System Medium Storage Unit Seismic Detector Hardened Medium Armor Plating Light EM Pulse Cannon Heavy Particle Cannon Proton Missile Launcher Improved Grenade Launcher Mining Laser Peak State ------------ > --- POWER ------------ Ion Engine > --- PROPULSION ------- Titanium Leg Improved Titanium Leg > --- UTILITY ---------- Large Storage Unit Hardened Medium Armor Plating > --- WEAPON ----------- Particle Gun Improved EM Pulse Cannon > --- INVENTORY -------- Light Ion Engine Armored Treads Aluminum Leg Titanium Leg Improved Cooling System Medium Storage Unit Seismic Detector Hardened Medium Armor Plating Light EM Pulse Cannon Heavy Particle Cannon Proton Missile Launcher Improved Grenade Launcher Mining Laser [Rating: 21] Favorites ----------- Power Ion Engine Engine Ion Engine Propulsion Aluminum Leg Treads Armored Treads Leg Aluminum Leg Wheel Wheel Utility Seismic Detector Device Seismic Detector Storage Medium Storage Unit Processor Transport Network Coupler Protection Light Armor Plating Weapon Light EM Pulse Cannon Energy Gun Medium Laser Energy Cannon Light EM Pulse Cannon Special Weapon Mining Laser Build | -11 -10 -10 -7 ------- Run | Yrd Mat Sub Rec Slots Evolved . | . . . . Power . | . . . . Propulsion . | . . . . Utility . | . . . . Weapon . | . . . . Parts Attached 26 | 8 11 1 6 Power 2 | 1 1 . . Engine 2 | 1 1 . . Core . | . . . . Reactor . | . . . . Propulsion 8 | 2 3 . 3 Treads 1 | . . . 1 Leg 5 | 2 1 . 2 Wheel 2 | . 2 . . Hover . | . . . . Flight . | . . . . Utility 8 | 2 4 . 2 Device 1 | 1 . . . Storage 4 | 1 2 . 1 Processor 1 | . 1 . . Hackware . | . . . . Protection 2 | . 1 . 1 Artifact . | . . . . Weapon 8 | 3 3 1 1 Energy Gun 3 | 2 1 . . Energy Cannon 4 | . 2 1 1 Ballistic Gun . | . . . . Ballistic Cannon . | . . . . Launcher . | . . . . Special Weapon 1 | 1 . . . Impact Weapon . | . . . . Slashing Weapon . | . . . . Piercing Weapon . | . . . . Special Melee Weapon . | . . . . Unidentified Prototypes . | . . . . Parts Lost 8 | . . 4 4 Power 1 | . . . 1 Propulsion 2 | . . 1 1 Utility 1 | . . 1 . Weapon 4 | . . 2 2 Highest Loss Streak 4 | . . 4 4 To Critical Strikes . | . . . . Average Backups 8 | 5 8 8 10 Power . | . 1 1 1 Propulsion 2 | 2 1 1 2 Utility 2 | . 1 2 2 Weapon 3 | . 4 4 4 Tool/Special . | . . . . Unused Backups 16 | . 6 . 10 Power 1 | . . . 1 Propulsion 4 | . 3 . 1 Utility 4 | . 2 . 2 Weapon 7 | . 1 . 6 Tool/Special . | . . . . Average Slot Usage (%) 98 | . 99 91 98 Engine 13 | . 14 14 13 Leg 18 | . 17 6 24 Wheel 8 | . 10 19 2 Device 8 | . 6 4 12 Storage 14 | . 14 14 14 Processor 3 | . 5 . . Protection 1 | . 1 3 . Energy Gun 11 | . 11 8 14 Energy Cannon 14 | . 13 18 14 Special Weapon 1 | . 2 . . Peak Build Rating 21 | 8 10 10 21 Average Rating 10 | 5 8 8 16 On Entrance 6 | . 8 10 8 Avg Prop Armor Cover (%) 9 | . 9 9 9 Naked Turns . | . . . . Heaviest Build 43 | 13 26 25 43 Greatest Support 37 | 20 20 20 37 Greatest Overweight (x) 2 | . 2 2 2 Average Overweight (x) . | . . 1 . Largest Inventory Capacity 15 | 8 10 10 15 Average Capacity 9 | 7 9 10 12 Most Carried 13 | 8 10 10 13 Average Carried 8 | 5 8 8 10 Final Capacity 15 | 8 10 10 15 Final Carried 13 | 8 10 7 13 Class Distribution -------------------- 100% | Mutant Dominant Class ---------------- Mutant | -10/Materials Mutant | -10/Subcaves Mutant | -7/Recycling Resources | -11 -10 -10 -7 ----------- Run | Yrd Mat Sub Rec Matter Collected 555 | 280 160 45 70 Remotely . | . . . . Salvage Created 1163 | 280 759 124 . Parts 76 | 23 47 6 . Haulers Intercepted 2 | . 2 . . Recyclers Shooed 3 | . 3 . . Parts Field Recycled . | . . . . Retrieved Matter . | . . . . Parts Self-Destructed 6 | . . 6 . Prevented . | . . . . Parts Restored . | . . . . Kills | -11 -10 -10 -7 ------- Run | Yrd Mat Sub Rec Combat Hostiles Destroyed 17 | . 13 4 . Guns 6 | . 5 1 . Cannons 9 | . 7 2 . AOE 2 | . 1 1 . Classes Destroyed 9 | 3 5 1 . Worker 5 | 2 3 . . Builder 1 | . 1 . . Tunneler 8 | 7 1 . . Hauler 2 | . 2 . . Recycler 3 | 1 2 . . Turret 2 | . . 2 . Watcher 2 | . 2 . . Swarmer 13 | . 9 4 . Grunt 4 | . 4 . . Best Kill Streak 6 | 6 4 4 . Combat Bots Only 4 | . 2 4 . Max Kills in Single Turn 1 | 1 1 1 . Gunslinging . | . . . . Exploded 1 | . 1 1 . Melee . | . . . . Uniques/NPCs Destroyed . | . . . . Combat | -11 -10 -10 -7 -------- Run | Yrd Mat Sub Rec Hostile Shots Fired 214 | . 44 97 73 Missed 72 | . 10 38 24 Hits 142 | . 34 59 49 Projectile 142 | . 34 59 49 Critical Strikes 1 | . 1 . . Damage Taken 1223 | . 323 441 459 Core 253 | . 67 72 114 Absorbed by Shields . | . . . . Regen/Repaired (Parts) 49 | . 49 . . Core Remaining (%) 100 | 100 . . . Volleys Fired 116 | 25 66 23 2 Largest 2 | 2 2 2 2 Hottest 150 | 100 150 121 134 Shots Fired 193 | 41 111 37 4 Gun 131 | 41 69 19 2 Cannon 49 | . 29 18 2 Launcher . | . . . . Special 13 | . 13 . . Kinetic . | . . . . Thermal 144 | 41 82 19 2 Explosive . | . . . . Electromagnetic 49 | . 29 18 2 Robot Hit Streak 8 | 5 8 5 6 Robot Miss Streak 6 | 3 6 2 . Penetration Max . | . . . . Secondary Targets . | . . . . Shots Hit Robots 109 | 27 55 23 4 Core Hits 49 | 11 30 7 1 Critical Kills . | . . . . Critical Parts Destroyed . | . . . . Critical Strikes 7 | 1 5 1 . Burn 7 | 1 5 1 . Melee Attacks . | . . . . Impact . | . . . . Slashing . | . . . . Piercing . | . . . . Sneak Attacks . | . . . . Combat Hostiles . | . . . . Follow-up Attacks . | . . . . Damage Inflicted 1826 | 310 993 437 86 Guns 972 | 310 491 136 35 Cannons 707 | . 414 242 51 Explosions 147 | . 88 59 . Melee . | . . . . Ramming . | . . . . Kinetic . | . . . . Thermal 1119 | 310 579 195 35 Explosive . | . . . . Electromagnetic 707 | . 414 242 51 Impact . | . . . . Slashing . | . . . . Piercing . | . . . . Highest Corruption . | . . . . Average Corruption . | . . . . Corruption Purged . | . . . . Corruption Blocked . | . . . . Overload Shots . | . . . . Overflow Damage 18 | . . 18 . Projectiles 18 | . . 18 . Explosions . | . . . . Melee . | . . . . Knockbacks . | . . . . Impact . | . . . . Kinetic . | . . . . Secondary . | . . . . Self-Inflicted Damage 72 | . 37 35 . Shots 3 | . 2 1 . Rammed . | . . . . Targets Rammed . | . . . . Kicked . | . . . . Crushed . | . . . . Highest Temperature 273 | 177 273 48 202 Average Temperature 65 | 67 67 17 140 Received Heat Transfer 396 | . 54 246 96 Siege Activations . | . . . . Martial Activations . | . . . . Shielding Activations . | . . . . Robots Disrupted . | . . . . Combat Hostiles . | . . . . Robots Corrupted . | . . . . Combat Hostiles . | . . . . Parts Fried 6 | . 5 1 . Impact Corruptions . | . . . . Robots Melted . | . . . . Combat Hostiles . | . . . . Parts Melted 4 | . 3 1 . Heat Transferred 3456 | 999 1876 507 74 Parts Sabotaged . | . . . . Parts Stolen . | . . . . Parts Stripped . | . . . . Power Chain Reactions 3 | . 2 1 . Alert | -11 -10 -10 -7 ------- Run | Yrd Mat Sub Rec Maximum Alert Level 1 | . . . 1 Low Security (%) 89 | 100 100 . 63 Level 1 10 | . . . 36 Level 2 . | . . . . Level 3 . | . . . . Level 4 . | . . . . Level 5 . | . . . . High Security . | . . . . Max Security . | . . . . Peak Influence 283 | 20 141 . 283 Initial 283 | . . . 283 Average 93 | 2 76 . 169 Influence Increases 1198 | 50 472 660 16 Destroy 0b10 Robot/C 380 | . 260 120 . Destroy 0b10 Robot/NC 105 | 50 55 . . Destroy Leader 58 | . 58 . . Successful Hack 51 | . 35 . 16 Destroy Structure 19 | . 19 . . Lose Combat Pursuer 585 | . 45 540 . Influence Decreases 1177 | 50 375 167 585 Entered New Map 354 | . . 47 307 Time Decay 743 | 50 375 80 238 Lost Part 80 | . . 40 40 Squads Dispatched 1 | . 1 . . Investigation . | . . . . Extermination . | . . . . Reinforcement 1 | . 1 . . Assault . | . . . . Garrison . | . . . . Intercept . | . . . . Searches Triggered . | . . . . Construction Impeded . | . . . . Haulers Reinforced . | . . . . Active Scanning Responses . | . . . . Cargo Convoy Interrupts . | . . . . Stealth | -11 -10 -10 -7 --------- Run | Yrd Mat Sub Rec Distress Signals 3 | . 3 . . Communications Jammed . | . . . . Distress Signals . | . . . . Times Spotted 58 | . 22 30 6 Peak Tracking Total 6 | . 4 6 6 Tactical Retreats 7 | . 2 5 . Traps | -11 -10 -10 -7 ------- Run | Yrd Mat Sub Rec Traps Triggered . | . . . . Indirectly . | . . . . Trap Hack Attempts . | . . . . Triggered . | . . . . Disarmed . | . . . . Reprogrammed . | . . . . Reused . | . . . . Traps Extracted . | . . . . Installed . | . . . . Triggered . | . . . . Machines | -11 -10 -10 -7 ---------- Run | Yrd Mat Sub Rec Machines Disabled 2 | . . 2 . Max in Single Turn 1 | . . 1 . Machines Repaired . | . . . . Machines Dismantled . | . . . . Machines Sabotaged . | . . . . Overloaded Fab Kills . | . . . . Hacking | -11 -10 -10 -7 --------- Run | Yrd Mat Sub Rec Machines Accessed 10 | . 8 . 2 Terminals 9 | . 7 . 2 Fabricators . | . . . . Repair Stations 1 | . 1 . . Recycling Units . | . . . . Scanalyzers . | . . . . Garrison Access . | . . . . Total Hacks 28 | . 23 . 5 Successful 16 | . 12 . 4 Failed 12 | . 11 . 1 Catastrophic 2 | . 1 . 1 Database Lockouts . | . . . . Manual 10 | . 9 . 1 Terminals 26 | . 21 . 5 Fabricators . | . . . . Repair Stations 2 | . 2 . . Recycling Units . | . . . . Scanalyzers . | . . . . Garrison Access . | . . . . Terminal Hacks 9 | . 6 . 3 Record 2 | . 2 . . Prototype ID Bank 1 | . 1 . . Recycling Unit Index 1 | . . . 1 Scanalyzer Index 1 | . 1 . . Alert Level 1 | . . . 1 Hauler Manifests 1 | . 1 . . Zone Layout 2 | . 1 . 1 Fabricator Hacks . | . . . . Repair Station Hacks 2 | . 2 . . Scan Component 1 | . 1 . . Repair 1 | . 1 . . Recycling Unit Hacks . | . . . . Scanalyzer . | . . . . Garrison Access Hacks . | . . . . Unauthorized Hacks 5 | . 4 . 1 Terminals 5 | . 4 . 1 Botnet 5 | . 4 . 1 Fabricators . | . . . . Repair Stations . | . . . . Recycling Units . | . . . . Scanalyzers . | . . . . Garrison Access . | . . . . Data Cores Recovered . | . . . . Used . | . . . . Hacking Detections 7 | . 6 . 1 Full Trace Events 1 | . 1 . . Feedback Events . | . . . . Feedback Blocked . | . . . . Robot Schematics Acquired . | . . . . Robots Built . | . . . . Authchips . | . . . . Time . | . . . . Total Robot Build Rating . | . . . . Part Schematics Acquired . | . . . . Parts Built . | . . . . Authchips . | . . . . Time . | . . . . Total Part Build Rating . | . . . . Part Studies Acquired . | . . . . Parts Repaired 1 | . 1 . . Time 32 | . 32 . . Parts Recycled . | . . . . Recycled Matter . | . . . . Retrieved Matter . | . . . . Retrieved Components . | . . . . Parts Scanalyzed . | . . . . Part Schematics Acquired . | . . . . Parts Damaged . | . . . . Bothacking | -11 -10 -10 -7 ------------ Run | Yrd Mat Sub Rec Used RIF Installer . | . . . . Robots Hacked . | . . . . Non-combat . | . . . . Combat . | . . . . Robot Hacks Applied . | . . . . Relay Couplers Released . | . . . . Fabnet Peak Effective % . | . . . . Robots Rewired . | . . . . Allies Hacked . | . . . . Hacks Repelled . | . . . . Allies | -11 -10 -10 -7 -------- Run | Yrd Mat Sub Rec Total Allies . | . . . . Largest Group . | . . . . Highest-Rated Group . | . . . . Highest-Rated Ally . | . . . . Total Orders . | . . . . Ally Attacks . | . . . . Total Damage . | . . . . Kills . | . . . . Allies Corrupted . | . . . . Allies Melted . | . . . . Intel | -11 -10 -10 -7 ------- Run | Yrd Mat Sub Rec Active Infowar (turns) 1483 | 45 918 51 469 Seismic 1058 | 45 493 51 469 T.N.C. 425 | . 425 . . Robot Analysis Total . | . . . . Derelict Logs Recovered 1 | . . 1 . Drone Launches . | . . . . Drone Recoveries . | . . . . Exploration | -11 -10 -10 -7 ------------- Run | Yrd Mat Sub Rec Turns Passed 1968 | 233 1055 162 518 Spaces Moved 1131 | 124 541 78 388 Core 5 | 5 . . . Treads . | . . . . Legs 746 | 119 315 . 312 Wheels 380 | . 226 78 76 Hover . | . . . . Flight . | . . . . Fastest Speed 50 | 50 95 95 110 Average Speed 117 | 117 114 101 125 Slowest Speed 260 | 120 190 110 260 Overloaded Moves . | . . . . Propulsion Burnouts . | . . . . Robots Hopped . | . . . . Potential Cave-ins . | . . . . Cave-ins Triggered . | . . . . Exploration Rate (%) 38 | 4 89 9 50 Regions Visited 3 Branch Regions 2 Pre-discovered Areas . | . . . . Known Exits Taken . | . . . . Unknown Exits Taken 3 | 1 1 1 . Scrap Searched . | . . . . Spaces Dug 13 | . 13 . . Terrain Destroyed 20 | . 16 4 . Melee . | . . . . Projectile 13 | . 13 . . AOE 7 | . 3 4 . Terrain Rammed . | . . . . Walls Destroyed . | . . . . Machines Disabled . | . . . . Actions | -11 -10 -10 -7 --------- Run | Yrd Mat Sub Rec Total 1542 | 166 840 123 413 Wait 214 | 2 190 19 3 Move 1128 | 123 540 77 388 Hop . | . . . . Pick Up 29 | 8 12 . 9 Fast Attach 10 | 7 3 . . Attach 5 | . . 3 2 Detach 1 | . . . 1 Swap 23 | 1 15 1 6 Drop 16 | . 14 . 2 Fire 116 | 25 66 23 2 Melee . | . . . . Ram . | . . . . Kick . | . . . . Crush . | . . . . Escape Stasis . | . . . . Rewire . | . . . . Trap . | . . . . Miscellaneous . | . . . . Route ------- -11/Scrapyard -10/Materials (discovered 4 exits: [*Mat x2] / [*Min] / [*Sub]) -10/Subcaves -7/Recycling (discovered 1 exit: [*Fac]) History --------- Turn | Location | Event 29 | -11/Scrapyard | Discovered new exit (range 15) 234 | -11/Scrapyard | Entered Materials 290 | -10/Materials | Discovered new exit (range 13) 302 | -10/Materials | Build established: Mutant 874 | -10/Materials | Discovered new exit (range 12) 960 | -10/Materials | Discovered new exit (range 7) 1023 | -10/Materials | Repaired Particle Gun 1274 | -10/Materials | Discovered new exit (range 6) 1289 | -10/Materials | Entered Subcaves 1290 | -10/Subcaves | Approached by a straggling Scientist 1337 | -10/Subcaves | Learned location of 1 exit from Materials 1337 | -10/Subcaves | Discovered new exit (range 15) 1393 | -10/Subcaves | Core integrity fell below 50% 1415 | -10/Subcaves | Lost 4 parts (1n1u2w) 1451 | -10/Subcaves | Entered Recycling 1725 | -7/Recycling | Discovered new exit (range 15) 1966 | -7/Recycling | Core integrity fell below 20% 1969 | -7/Recycling | Destroyed by Y-54 Guardian with Gatling Laser Last Messages --------------- Awaiting botnet instructions. >>Index(Recycling Units) Found 3 recycling units. Downloaded coordinate data. >>Alert(Check) Current Alert Level: 1-B 01678_ Acquired Titanium Leg. 01683_ Dropped Wheel. 01687_ Acquired Aluminum Leg. 01689_ R-06 Scavenger collects Wheel. 01696_ Acquired Hrd. Medium Armor Plating. 01705_ Acquired Titanium Leg. 01725_ EXIT=FOUND 01731_ Acquired 20 matter. 01761_ Connecting with Terminal... 01956_ Y-54 Guardian springs to life. 01959_ Ion Engine destroyed. 01960_ Particle Gun destroyed. 01963_ Imp. EM Pulse Cannon destroyed. 01969_ Imp. Titanium Leg destroyed. Map ----- +----------------------------------------------------+ | | | | | ?????????????????????????????????????????????????? | | ?????????????????????????????????????????????????? | | ?????????????????????????????????????????????????? | | ?????????????????????????????????????????????????? | | ?????????????????????????????????????????????????? | | ?????????????????????????????????????????????????? | | ?????????????????????????????????????????????????? | | ?????????????????????????????????????????????????? | | ?????????????????????????????????????????????????? | | ?????????????????????????????????????????????????? | | ?????????????????????????????????????????????????? | | ?????????????????????????????????????????????????? | | ?????#############???????????????????????????????? | | ?????# ! #???????????????????????????????? | | ?????# #???????????????????????????????? | | ?????# ! = * #???????????????????????????????? | | ?????# ! ! #???????????????????????????????? | | ?????#] ! #???????????????????????????????? | | ??????? * ???#####?????????????????????????? | | ????????? !?????#! !#?????????????????????????? | | ?????######+########!!!############# ?????????? | | ?????# p p ????????? | | ?????# p s ????????? | | ?????# r YY @ r r ????????? | | ?????### #####===# ### ###########?????????????? | | ???????# #???# =###?###???????????????????????? | | ?####### #???#####?????????????????????????????? | | # #?????????????????????????????????????? | | """ # ####??##??????????????????????????????? | | """ # ## ### #######????????????????????????? | | """ # # #????????????????????????? | | # # #????????????????????????? | | """ # # #????????????????????????? | | """ # # #????????????????????????? | | """ # # #????????????????????????? | | # # #????????????????????????? | | """ + + #????????????????????????? | | """ # # #????????????????????????? | | """ # # #????????????????????????? | | # # #????????????????????????? | | """ # # #????????????????????????? | | """ # # #????????????????????????? | | """ # ##############" ??????????????? | | # #????????????### """ ??????????????? | | # #??????????????# """ ??????????????? | | ######## #??????????????# """ ??????????????? | | ???????# #??????????????# ??????????????? | | ######## #??????????????# ??????????????? | +----------------------------------------------------+ Best States ------------- Heat Dissipation 25 Energy Generation 10 Energy Capacity 250 Matter Stores 300 Matter Capacity 300 Sight Range 16 Terrain Scan Density 10 Armor Coverage 225 Evasion (%) 55 Item Schematics ----------------- None Robot Schematics ------------------ None Fabricated ------------ Nothing Repaired ---------- Particle Gun | 34% | -10/Materials Studied --------- None Alien Tech Used ----------------- None Achievements -------------- None Challenges ------------ None Game ------ Seed StasisMinesnifferChaincannon Manual? 0 Play Time 00:36:34 Cumulative 97.9 hours Start 2026.07.29 @ 18:20:49 End 2026.07.29 @ 23:33:30 Sessions 3 Manual Loads 0 Difficulty Rogue Special Mode None Game No. 41 Rogue 41 Adventurer 0 Explorer 0 Win Type - Total 1 Types 1/0/0/0/0/0/0/0/0/0 Lore% 34 Gallery% 46 Achievement% 40 Wizard Run 0 Options --------- Layout 1 ASCII 0 Keyboard 0 Movement Arrows Keybinds 0 Fullscreen 2 Font 48/Smallcaps Map View 50x35 Zoom Use 0% Tactical HUD 1 Map Filters NONE Filters NONE Steam 1 RUN: 82ca4f2c-aae3-495d-8cfd-715b22f15cb8